bitfinex-derivatives/quotes_BTCF0:USTF0_20240830
["timestamp","ask_amount","ask_price","bid_price","bid_amount"]
[1724993147288,0.204608,59093.0,59092.0,0.00025371]
[1724993147586,0.89977272,59093.0,59092.0,0.00025371]
[1724993147783,0.94888185,59093.0,59092.0,0.00025371]
[1724993148182,1.54888185,59093.0,59092.0,0.00025371]
[1724993148889,1.54888185,59093.0,59087.0,0.0039]
[1724993148890,0.084615,59088.0,59087.0,0.0039]
[1724993149184,0.084615,59088.0,59084.0,0.3608]
[1724993149185,0.084619,59085.0,59084.0,0.3608]
[1724993149381,0.084628,59079.0,59078.0,0.3213]
[1724993149578,0.083628,59079.0,59078.0,0.3213]
[1724993149780,0.27800128,59079.0,59078.0,0.3213]
[1724993150294,0.27200128,59079.0,59078.0,0.3213]
[1724993150882,0.27300128,59079.0,59078.0,0.3303]
[1724993152782,0.27300128,59079.0,59078.0,0.009]
[1724993156184,0.28752575,59079.0,59078.0,0.009]
[1724993162106,0.20989775,59079.0,59078.0,0.001]
[1724993162392,0.41452575,59079.0,59078.0,0.001]
[1724993171790,0.29452575,59079.0,59078.0,0.001]
[1724993171997,0.41452575,59079.0,59078.0,0.001]
[1724993181105,0.19537328,59079.0,59078.0,0.121]
[1724993181404,0.19537328,59079.0,59078.0,0.085629]
[1724993181701,0.19537328,59079.0,59078.0,0.001]
[1724993182302,0.28000128,59079.0,59078.0,0.001]
[1724993185207,0.09988667,59079.0,59078.0,0.001]
[1724993187817,0.11478156,59079.0,59078.0,0.001]
[1724993221834,0.47558156,59079.0,59078.0,0.001]
[1724993222136,0.60928331,59079.0,59078.0,0.001]
[1724993223234,0.083635,59074.0,59073.0,0.36105371]
[1724993223431,0.203635,59074.0,59073.0,0.36105371]
[1724993223630,0.39907303,59074.0,59073.0,0.36105371]
[1724993225933,0.40007303,59074.0,59073.0,0.36205371]
[1724993228942,0.40007303,59074.0,59073.0,0.00125371]
[1724993229136,0.40007303,59074.0,59073.0,0.36205371]
[1724993234750,0.40007303,59074.0,59073.0,0.00125371]
[1724993237737,0.48470803,59074.0,59073.0,0.00125371]
[1724993237946,1.26871303,59074.0,59073.0,0.00125371]
[1724993238250,0.80994678,59074.0,59073.0,0.00125371]
[1724993239449,0.80894678,59074.0,59073.0,0.00125371]
[1724993240155,0.44814678,59074.0,59073.0,0.00125371]
[1724993240552,0.39907303,59074.0,59073.0,0.00125371]
[1724993241751,0.95651303,59074.0,59073.0,0.00125371]
[1724993242053,1.00558678,59074.0,59073.0,0.00125371]
[1724993243149,1.00558678,59074.0,59073.0,0.00025371]
[1724993247252,1.60558678,59074.0,59073.0,0.00025371]
[1724993247853,1.69022178,59074.0,59073.0,0.00025371]
[1724993248052,0.084645,59067.0,59066.0,0.0039]
[1724993248357,0.3043679,59067.0,59060.0,0.3628]
[1724993248544,0.12,59061.0,59060.0,0.3628]
[1724993249061,0.3043679,59061.0,59060.0,0.3628]
[1724993249355,0.3033679,59061.0,59060.0,0.3628]
[1724993249940,0.3043679,59061.0,59060.0,0.3638]
[1724993256763,0.3053679,59061.0,59060.0,0.3638]
[1724993256958,0.1853679,59061.0,59060.0,0.3638]
[1724993257162,0.3053679,59061.0,59060.0,0.3638]
[1724993258157,0.3900219,59061.0,59060.0,0.3638]
[1724993259467,0.3053679,59061.0,59060.0,0.3638]
[1724993266974,0.3053679,59061.0,59060.0,0.003]
[1724993267161,0.3053679,59061.0,59060.0,0.3638]
[1724993268271,0.3053679,59061.0,59060.0,0.003]
[1724993268473,0.3053679,59061.0,59060.0,0.3638]
[1724993269374,0.3053679,59061.0,59060.0,0.003]
[1724993269375,0.15103032,59061.0,59060.0,0.003]
[1724993269574,0.15103032,59061.0,59060.0,0.3638]
[1724993273173,0.15103032,59061.0,59060.0,0.003]
[1724993273368,0.15103032,59061.0,59060.0,0.3638]
[1724993278974,0.03103032,59061.0,59060.0,0.568455]
[1724993280175,0.03077662,59061.0,59060.0,1.676415]
[1724993280973,0.03077662,59061.0,59060.0,1.076415]
[1724993281281,0.03077662,59061.0,59060.0,1.676415]
[1724993283975,0.03077662,59061.0,59060.0,1.076415]
[1724993284683,0.03077662,59061.0,59060.0,1.437215]
[1724993285283,0.03077662,59061.0,59060.0,1.317215]
[1724993285478,0.03077662,59061.0,59060.0,1.437215]
[1724993285681,0.03077662,59061.0,59060.0,2.037215]
[1724993286587,0.03077662,59061.0,59060.0,1.315615]
[1724993286788,0.03077662,59061.0,59060.0,1.437215]
[1724993287473,0.03077662,59061.0,59060.0,0.809255]
[1724993291486,0.03077662,59061.0,59060.0,0.7246]
[1724993291792,0.11543062,59061.0,59060.0,0.7246]
[1724993293584,0.11543062,59061.0,59060.0,0.3638]
[1724993295385,0.11543062,59061.0,59060.0,0.4838]
[1724993298281,0.03077662,59061.0,59060.0,1.676415]
[1724993303188,0.03077662,59061.0,59060.0,2.037215]
[1724993305692,6.2e-07,59061.0,59060.0,2.12187]
[1724993315094,6.2e-07,59061.0,59060.0,1.40027]
[1724993315297,6.2e-07,59061.0,59060.0,2.12187]
[1724993317204,6.2e-07,59061.0,59060.0,1.40027]
[1724993317396,6.2e-07,59061.0,59060.0,2.12187]
[1724993317591,6.2e-07,59061.0,59060.0,1.40027]
[1724993317796,6.2e-07,59061.0,59060.0,2.12187]
[1724993320203,6.2e-07,59061.0,59060.0,1.40027]
[1724993320508,6.2e-07,59061.0,59060.0,2.12187]
[1724993321691,6.2e-07,59061.0,59060.0,1.52187]
[1724993322601,6.2e-07,59061.0,59060.0,2.12187]
[1724993323101,6.2e-07,59061.0,59060.0,1.52187]
[1724993323297,6.2e-07,59061.0,59060.0,2.12187]
[1724993324304,6.2e-07,59061.0,59060.0,1.40027]
[1724993324608,6.2e-07,59061.0,59060.0,2.12187]
[1724993324905,6.2e-07,59061.0,59060.0,0.29231]
[1724993325205,6.2e-07,59061.0,59060.0,1.01391]
[1724993325394,6.2e-07,59061.0,59060.0,0.809255]
[1724993325602,0.18516975,59061.0,59060.0,0.929255]
[1724993330106,0.18516975,59061.0,59060.0,0.207655]
[1724993330309,0.18516975,59061.0,59060.0,0.929255]
[1724993330907,0.18516975,59061.0,59060.0,0.207655]
[1724993331110,0.18516975,59061.0,59060.0,0.929255]
[1724993337012,0.18516975,59061.0,59060.0,0.809255]
[1724993337210,0.18516975,59061.0,59060.0,0.929255]
[1724993341821,0.18516975,59061.0,59060.0,0.207655]
[1724993342018,0.18516975,59061.0,59060.0,0.929255]
[1724993351135,0.18516975,59061.0,59060.0,0.207655]
[1724993351327,0.18516975,59061.0,59060.0,0.929255]
[1724993354526,0.00254394,59061.0,59060.0,0.929255]
[1724993355230,0.00254394,59061.0,59060.0,0.207655]
[1724993355418,0.00254394,59061.0,59060.0,0.929255]
[1724993355713,0.00254394,59061.0,59060.0,1.01391]
[1724993356526,0.00254394,59061.0,59060.0,0.29231]
[1724993356735,0.00254394,59061.0,59060.0,1.01391]
[1724993359720,0.00254394,59061.0,59060.0,0.809255]
[1724993360026,0.00254394,59061.0,59060.0,0.7246]
[1724993363122,0.00254394,59061.0,59060.0,0.3638]
[1724993363821,0.00254394,59061.0,59060.0,0.4838]
[1724993364326,0.00254394,59061.0,59060.0,0.3638]
[1724993364533,0.00254394,59061.0,59060.0,0.4838]
[1724993365831,0.00025395,59066.0,59065.0,0.084648]
[1724993366032,0.00025395,59066.0,59065.0,0.565448]
[1724993366326,0.19581007,59066.0,59065.0,0.565448]
[1724993368234,0.19681007,59066.0,59065.0,0.566448]
[1724993371032,0.19681007,59066.0,59065.0,0.58149815]
[1724993374838,0.0039,59074.0,59073.0,0.084636]
[1724993375131,0.0957,59080.0,59073.0,0.3608]
[1724993375329,0.18286012,59074.0,59073.0,0.445436]
[1724993375530,0.0957,59080.0,59077.0,0.084629]
[1724993375531,0.19204284,59079.0,59077.0,0.084629]
[1724993375732,0.0957,59080.0,59078.0,0.565429]
[1724993376134,0.19204284,59079.0,59078.0,0.565429]
[1724993379230,0.19804284,59079.0,59078.0,0.565429]
[1724993379938,0.19804284,59079.0,59078.0,0.58006436]
[1724993381639,0.00415395,59085.0,59084.0,0.084621]
[1724993381938,0.00025395,59085.0,59084.0,0.565421]
[1724993382240,0.0039,59093.0,59084.0,1.58856]
[1724993382430,0.0039,59097.0,59096.0,0.084603]
[1724993382631,0.047,59104.0,59096.0,0.4808]
[1724993382836,0.23455955,59104.0,59103.0,0.4808]
[1724993383037,0.047,59104.0,59103.0,0.4808]
[1724993383538,0.23455955,59104.0,59103.0,0.4808]
[1724993385034,0.24855955,59104.0,59103.0,0.4818]
[1724993386834,0.36855955,59104.0,59103.0,0.3618]
[1724993393340,0.45315155,59104.0,59103.0,0.3618]
[1724993393744,0.45315155,59104.0,59103.0,0.001]
[1724993401956,0.04415528,59104.0,59103.0,0.001]
[1724993402460,0.16415528,59104.0,59103.0,0.001]
[1724993402849,0.16415528,59104.0,59103.0,0.085593]
[1724993404348,0.16415528,59104.0,59103.0,0.001]
[1724993404543,0.24874728,59104.0,59103.0,0.001]
[1724993407155,0.26274728,59104.0,59103.0,0.002]
[1724993408656,1.37034728,59104.0,59103.0,0.002]
[1724993410755,1.35634728,59104.0,59103.0,0.001]
[1724993410948,1.37034728,59104.0,59103.0,0.002]
[1724993411553,1.35634728,59104.0,59103.0,0.001]
[1724993411858,1.36634728,59104.0,59103.0,0.002]
[1724993412363,1.36734728,59104.0,59103.0,0.002]
[1724993413663,1.36834728,59104.0,59103.0,0.002]
[1724993414464,0.082593,59103.0,59102.0,0.3608]
[1724993414658,0.590193,59103.0,59102.0,0.3608]
[1724993414858,1.38308111,59103.0,59102.0,0.3608]
[1724993415154,1.38208111,59103.0,59102.0,0.3608]
[1724993415764,0.084599,59099.0,59098.0,0.00025395]
[1724993415970,0.204599,59099.0,59098.0,0.00025395]
[1724993416167,0.39126345,59099.0,59098.0,0.00025395]
[1724993416672,0.38926345,59099.0,59098.0,0.00025395]
[1724993416867,1.58150245,59099.0,59098.0,0.00025395]
[1724993417167,1.58150245,59099.0,59083.0,0.3608]
[1724993417168,0.084618,59086.0,59085.0,0.0475]
[1724993417357,0.4808,59086.0,59076.0,0.084632]
[1724993417558,0.12,59077.0,59076.0,0.084632]
[1724993417762,0.12,59077.0,59075.0,0.0475]
[1724993417966,0.29769455,59077.0,59075.0,0.0475]
[1724993418866,0.17769455,59077.0,59075.0,0.1675]
[1724993419262,0.204629,59078.0,59075.0,0.1675]
[1724993419462,0.188397,59077.0,59075.0,0.1675]
[1724993419977,0.188397,59077.0,59075.0,0.0475]
[1724993420659,0.188397,59077.0,59075.0,0.0485]
[1724993422079,0.188397,59077.0,59076.0,0.3608]
[1724993423563,0.189397,59077.0,59076.0,0.3608]
[1724993426178,0.189397,59077.0,59076.0,0.37589505]
[1724993430180,0.189397,59077.0,59076.0,0.46052705]
[1724993431374,0.189397,59077.0,59076.0,0.46252705]
[1724993431774,0.189397,59077.0,59076.0,0.75252705]
[1724993431975,0.11059699,59077.0,59076.0,1.86032705]
[1724993432177,0.002,59077.0,59076.0,1.86032705]
[1724993433183,0.002,59077.0,59076.0,1.85932705]
[1724993433583,0.00025395,59082.0,59081.0,0.084625]
[1724993433886,0.18620548,59082.0,59081.0,0.445425]
[1724993434087,0.18620548,59082.0,59081.0,0.735425]
[1724993436088,0.18620548,59082.0,59081.0,0.740425]
[1724993436089,0.18720548,59082.0,59081.0,0.740425]
[1724993436494,0.18820548,59082.0,59081.0,0.747425]
[1724993440084,0.18820548,59082.0,59081.0,0.577425]
[1724993440394,0.18820548,59082.0,59081.0,0.576425]
[1724993440595,0.18720548,59082.0,59081.0,0.571425]
[1724993440891,0.18720548,59082.0,59081.0,0.576425]
[1724993442401,0.18620548,59082.0,59081.0,0.575425]
[1724993442791,0.18620548,59082.0,59081.0,0.573425]
[1724993444302,0.18620548,59082.0,59081.0,0.453425]
[1724993444496,0.30620548,59082.0,59081.0,0.453425]
[1724993445397,0.30620548,59082.0,59081.0,0.448425]
[1724993445603,0.30620548,59082.0,59081.0,0.450425]
[1724993445802,0.30620548,59082.0,59081.0,0.447425]
[1724993446209,0.30620548,59082.0,59081.0,0.445425]
[1724993446394,0.30920548,59082.0,59081.0,0.445425]
[1724993446596,0.31420548,59082.0,59081.0,0.445425]
[1724993447094,0.19420548,59082.0,59081.0,0.445425]
[1724993451499,0.19120548,59082.0,59081.0,0.449425]
[1724993452202,0.18620548,59082.0,59081.0,0.451425]
[1724993452802,0.18620548,59082.0,59081.0,0.450425]
[1724993453207,0.18620548,59082.0,59081.0,0.449425]
[1724993464634,0.47620548,59082.0,59081.0,0.3648]
[1724993464812,1.58396548,59082.0,59074.0,0.0039]
[1724993465123,1.58396548,59082.0,59070.0,0.36105395]
[1724993465124,0.29,59077.0,59071.0,0.0039]
[1724993465420,0.22160173,59076.0,59070.0,0.44569395]
[1724993465623,0.21860173,59076.0,59070.0,0.44569395]
[1724993465825,0.21760173,59076.0,59070.0,0.44569395]
[1724993466431,0.21760173,59076.0,59071.0,0.013]
[1724993466926,0.084633,59075.0,59071.0,0.008]
[1724993467133,0.084633,59075.0,59073.0,0.3608]
[1724993467320,0.19009001,59074.0,59073.0,0.3608]
[1724993469024,0.19109001,59074.0,59073.0,0.3658]
[1724993470138,0.31109001,59074.0,59073.0,0.3658]
[1724993471222,0.31109001,59074.0,59073.0,0.005]
[1724993471430,0.31109001,59074.0,59073.0,0.3658]
[1724993471626,0.31109001,59074.0,59073.0,0.005]
[1724993473537,1.50356501,59074.0,59073.0,0.005]
[1724993474037,1.55374767,59074.0,59073.0,0.005]
[1724993475736,0.169278,59071.0,59070.0,0.00025395]
[1724993475928,0.169278,59071.0,59060.0,0.002]
[1724993475929,0.12,59068.0,59063.0,0.0039]
[1724993476129,0.3608,59071.0,59060.0,0.002]
[1724993476130,0.374654,59061.0,59060.0,0.002]
[1724993476531,1.67215168,59061.0,59060.0,0.002]
[1724993478032,1.66915168,59061.0,59060.0,0.002]
[1724993478223,1.67015168,59061.0,59060.0,0.003]
[1724993478427,1.07015168,59061.0,59060.0,0.003]
[1724993479029,1.07115168,59061.0,59060.0,0.006]
[1724993483537,0.56319168,59061.0,59060.0,0.006]
[1724993491738,0.27319168,59061.0,59060.0,0.006]
[1724993491946,0.27319168,59061.0,59060.0,0.3668]
[1724993495238,0.27319168,59061.0,59060.0,0.006]
[1724993495842,0.06365898,59061.0,59060.0,0.006]
[1724993496640,0.14831298,59061.0,59060.0,0.006]
[1724993497943,0.26831298,59061.0,59060.0,0.006]
[1724993498842,0.26831298,59061.0,59060.0,0.3668]
[1724993500450,0.26831298,59061.0,59060.0,0.006]
[1724993502342,0.06365898,59061.0,59060.0,0.090655]
[1724993502543,0.05940503,59061.0,59060.0,1.658015]
[1724993503956,0.05940503,59061.0,59060.0,1.948015]
[1724993504745,0.05940503,59061.0,59060.0,1.658015]
[1724993504947,0.05940503,59061.0,59060.0,1.058015]
[1724993505652,0.05940503,59061.0,59060.0,0.550055]
[1724993521663,0.05940503,59061.0,59060.0,0.500155]
[1724993526061,0.05940503,59061.0,59060.0,0.620155]
[1724993530966,0.002,59061.0,59060.0,1.728115]
[1724993531763,0.002,59061.0,59060.0,1.81277]
[1724993531963,0.002,59061.0,59060.0,1.82077]
[1724993532360,0.002,59061.0,59060.0,1.83077]
[1724993532671,0.001,59061.0,59060.0,0.66311]
[1724993532865,0.18860603,59061.0,59060.0,0.54311]
[1724993533072,0.18960603,59061.0,59060.0,0.67411]
[1724993535167,0.18960603,59061.0,59060.0,0.67511]
[1724993535972,0.18860603,59061.0,59060.0,0.67411]
[1724993536871,0.18860603,59061.0,59060.0,0.589455]
[1724993543067,1e-06,59061.0,59060.0,1.78207]
[1724993543272,0.00025395,59066.0,59065.0,0.084648]
[1724993543476,0.00025395,59066.0,59065.0,0.565448]
[1724993543777,0.0039,59073.0,59072.0,0.084638]
[1724993543983,0.0039,59080.0,59079.0,0.084628]
[1724993544182,0.0491,59084.0,59081.0,0.204625]
[1724993544373,0.0491,59084.0,59081.0,0.12]
[1724993544374,0.18046236,59083.0,59081.0,0.12]
[1724993544685,0.0491,59084.0,59081.0,0.12]
[1724993545073,0.1787839,59083.0,59081.0,0.12]
[1724993545772,0.1787839,59083.0,59082.0,0.084623]
[1724993546678,0.1837839,59083.0,59082.0,0.084623]
[1724993546878,0.1897839,59083.0,59082.0,0.084623]
[1724993547183,0.3097839,59083.0,59082.0,0.084623]
[1724993547481,0.3097839,59083.0,59082.0,0.09938168]
[1724993547875,0.1897839,59083.0,59082.0,0.09938168]
[1724993548187,0.3097839,59083.0,59082.0,0.09938168]
[1724993548378,0.3107839,59083.0,59082.0,0.10038168]
[1724993549181,0.3107839,59083.0,59082.0,0.10138168]
[1724993552782,0.3107839,59083.0,59082.0,0.086623]
[1724993553089,0.3107839,59083.0,59082.0,0.002]
[1724993554286,0.8185439,59083.0,59082.0,0.002]
[1724993554493,1.553259,59083.0,59082.0,0.002]
[1724993556397,0.445499,59083.0,59082.0,0.002]
[1724993556690,0.3954059,59083.0,59082.0,0.002]
[1724993560886,0.9031659,59083.0,59082.0,0.002]
[1724993561691,0.953259,59083.0,59082.0,0.002]
[1724993563192,0.445499,59083.0,59082.0,0.002]
[1724993563390,0.2754059,59083.0,59082.0,0.002]
[1724993563597,0.3954059,59083.0,59082.0,0.002]
[1724993594516,0.4800279,59083.0,59082.0,0.002]
[1724993595111,1.0800279,59083.0,59082.0,0.002]
[1724993595310,1.637881,59083.0,59082.0,0.002]
[1724993597018,1.037881,59083.0,59082.0,0.002]
[1724993597211,1.037881,59083.0,59082.0,0.00180001]
[1724993597515,0.530121,59083.0,59082.0,0.00180001]
[1724993597714,0.4800279,59083.0,59082.0,0.00180001]
[1724993598517,0.2754059,59083.0,59082.0,0.00180001]
[1724993598711,0.3954059,59083.0,59082.0,0.00180001]
[1724993606717,0.3954059,59083.0,59082.0,0.00162001]
[1724993609930,0.3107839,59083.0,59082.0,0.01639249]
[1724993610118,0.3107839,59083.0,59082.0,0.00162001]
[1724993610913,0.3107839,59083.0,59082.0,0.08624301]
[1724993612031,0.07939737,59083.0,59082.0,0.08624301]
[1724993612329,0.27273762,59083.0,59082.0,0.08624301]
[1724993616522,0.35735962,59083.0,59082.0,0.00162001]
[1724993616922,0.27273762,59083.0,59082.0,0.00162001]
[1724993622143,0.19334025,59083.0,59082.0,0.08624301]
[1724993622441,0.12,59086.0,59085.0,0.084619]
[1724993622942,0.30764737,59086.0,59085.0,0.084619]
[1724993624243,0.30764737,59086.0,59085.0,0.085619]
[1724993624740,0.30764737,59086.0,59085.0,0.086619]
[1724993626339,0.18764737,59086.0,59085.0,0.086619]
[1724993626541,0.30764737,59086.0,59085.0,0.086619]
[1724993626738,0.12,59086.0,59085.0,0.086619]
[1724993627131,0.30777285,59086.0,59085.0,0.086619]
[1724993631243,0.30777285,59086.0,59085.0,0.447419]
[1724993631444,0.18777285,59086.0,59085.0,0.46206808]
[1724993631852,0.00025395,59088.0,59087.0,0.084616]
[1724993632346,0.17807467,59088.0,59087.0,0.084616]
[1724993633552,0.17807467,59088.0,59087.0,0.085616]
[1724993634236,0.17807467,59088.0,59087.0,0.086616]
[1724993635549,0.17807467,59088.0,59087.0,0.206616]
[1724993640849,0.17807467,59088.0,59087.0,0.567416]
[1724993643148,0.17807467,59088.0,59087.0,0.447416]
[1724993643348,0.17807467,59088.0,59087.0,0.3628]
[1724993643349,0.26268967,59088.0,59087.0,0.3628]
[1724993643558,0.40668967,59088.0,59087.0,0.3628]
[1724993644059,0.40668967,59088.0,59087.0,0.002]
[1724993644751,1.51440967,59088.0,59087.0,0.002]
[1724993644957,1.56450277,59088.0,59087.0,0.002]
[1724993647253,1.57924431,59088.0,59087.0,0.002]
[1724993647755,0.97924431,59088.0,59087.0,0.002]
[1724993648955,1.09924431,59088.0,59087.0,0.002]
[1724993651551,0.59152431,59088.0,59087.0,0.002]
[1724993651755,0.54143121,59088.0,59087.0,0.002]
[1724993653352,1.04915121,59088.0,59087.0,0.002]
[1724993653960,1.09924431,59088.0,59087.0,0.002]
[1724993656150,0.47152431,59088.0,59087.0,0.002]
[1724993656455,0.54143121,59088.0,59087.0,0.002]
[1724993665466,0.082623,59083.0,59078.0,0.01852885]
[1724993665665,0.082623,59083.0,59078.0,0.01462885]
[1724993665666,0.12,59080.0,59078.0,0.01462885]
[1724993665963,0.12,59080.0,59077.0,0.70244395]
[1724993665964,0.18298055,59079.0,59077.0,0.70244395]
[1724993666155,0.18298055,59079.0,59077.0,0.70148395]
[1724993666361,0.18198055,59079.0,59077.0,0.70148395]
[1724993666858,0.18198055,59079.0,59078.0,0.084629]
[1724993667663,0.18298055,59079.0,59078.0,0.084629]
[1724993667967,0.001,59079.0,59078.0,0.084629]
[1724993668168,0.18494507,59082.0,59079.0,0.084627]
[1724993668363,0.082623,59083.0,59081.0,0.12]
[1724993668762,0.18549833,59082.0,59081.0,0.12]
[1724993670269,0.18749833,59082.0,59081.0,0.121]
[1724993670773,0.18849833,59082.0,59081.0,0.121]
[1724993671264,0.18749833,59082.0,59081.0,0.121]
[1724993671469,0.18849833,59082.0,59081.0,0.121]
[1724993671859,0.18749833,59082.0,59081.0,0.121]
[1724993672063,0.18849833,59082.0,59081.0,0.121]
[1724993672263,0.18649833,59082.0,59081.0,0.12]
[1724993672464,0.18849833,59082.0,59081.0,0.12]
[1724993673971,0.18849833,59082.0,59081.0,0.204625]
[1724993681074,0.18849833,59082.0,59081.0,0.084625]
[1724993687084,0.18849833,59082.0,59080.0,0.3608]
[1724993687278,0.12,59081.0,59080.0,0.3608]
[1724993687589,0.29753727,59081.0,59080.0,0.3608]
[1724993688681,0.38316227,59081.0,59080.0,0.3608]
[1724993689987,0.38416227,59081.0,59080.0,0.3608]
[1724993690593,0.39862338,59081.0,59080.0,0.3608]
[1724993690786,0.084628,59079.0,59077.0,0.36105395]
[1724993691177,0.18980511,59078.0,59077.0,0.36105395]
[1724993693886,0.19180511,59078.0,59077.0,0.36105395]
[1724993698190,0.19180511,59078.0,59077.0,0.48105395]
[1724993701492,0.19180511,59078.0,59077.0,1.07348495]
[1724993701687,0.19180511,59078.0,59077.0,1.16738495]
[1724993706289,0.19180511,59078.0,59077.0,0.65958495]
[1724993707896,0.18980511,59078.0,59077.0,0.65958495]
[1724993708092,0.18980511,59078.0,59077.0,0.67458495]
[1724993708293,0.0039,59085.0,59084.0,0.084621]
[1724993708494,0.08486895,59088.0,59084.0,0.204621]
[1724993708700,0.08486895,59088.0,59087.0,0.3608]
[1724993708996,0.27981981,59088.0,59087.0,0.3608]
[1724993710390,0.40181981,59088.0,59087.0,0.3608]
[1724993711903,0.40181981,59088.0,59087.0,0.37544022]
[1724993712694,0.40181981,59088.0,59087.0,0.01464022]
[1724993713001,0.40181981,59088.0,59087.0,0.3608]
[1724993714200,0.40181981,59088.0,59085.0,0.084619]
[1724993714499,0.12,59086.0,59085.0,0.084619]
[1724993714903,0.31126782,59086.0,59085.0,0.084619]
[1724993717193,0.31326782,59086.0,59085.0,0.084619]
[1724993717805,0.39688582,59086.0,59083.0,0.37524401]
[1724993718313,0.39788582,59086.0,59083.0,0.37524401]
[1724993718803,0.08462,59085.0,59083.0,0.37524401]
[1724993719197,0.122,59086.0,59083.0,0.37524401]
[1724993719397,0.122,59086.0,59083.0,0.3608]
[1724993719699,0.18402897,59084.0,59083.0,0.3608]
[1724993719904,0.18402897,59085.0,59083.0,0.3608]
[1724993720098,0.122,59086.0,59083.0,0.3608]
[1724993720300,0.18402897,59085.0,59083.0,0.3608]
[1724993720807,0.001,59084.0,59083.0,0.3608]
[1724993721007,0.002,59084.0,59083.0,0.3608]
[1724993721210,0.19142473,59084.0,59083.0,0.3608]
[1724993722504,0.19042473,59084.0,59083.0,0.3608]
[1724993722704,0.27504573,59084.0,59083.0,0.3608]
[1724993724001,0.27604573,59084.0,59083.0,0.3608]
[1724993725213,0.27604573,59084.0,59081.0,0.37533253]
[1724993725412,0.27604573,59084.0,59081.0,0.3608]
[1724993726514,0.27504573,59084.0,59081.0,0.3608]
[1724993726711,0.27604573,59084.0,59081.0,0.3608]
[1724993727307,0.29055403,59084.0,59081.0,0.3608]
[1724993731715,0.084623,59083.0,59081.0,0.3608]
[1724993731917,0.084623,59083.0,59080.0,0.09944415]
[1724993732115,0.18417283,59082.0,59081.0,0.3608]
[1724993734219,0.18517283,59082.0,59081.0,0.3608]
[1724993734418,0.18617283,59082.0,59081.0,0.3608]
[1724993739037,0.18617283,59082.0,59080.0,0.46024415]
[1724993740043,0.27079583,59082.0,59080.0,0.46024415]
[1724993740245,0.26979583,59082.0,59080.0,0.46024415]
[1724993740442,0.27079583,59082.0,59080.0,0.46024415]
[1724993753144,0.27079583,59082.0,59081.0,0.3608]
[1724993754245,0.26979583,59082.0,59081.0,0.3608]
[1724993754649,0.27079583,59082.0,59081.0,0.3608]
[1724993754850,0.27079583,59082.0,59081.0,0.445425]
[1724993759057,0.18617283,59082.0,59081.0,0.445425]
[1724993759756,0.18617283,59082.0,59081.0,0.565425]
[1724993759956,0.18517283,59082.0,59081.0,0.565425]
[1724993760156,0.18617283,59082.0,59081.0,0.565425]
[1724993761158,0.18417283,59082.0,59081.0,0.565425]
[1724993761357,0.18517283,59082.0,59081.0,0.565425]
[1724993761561,0.001,59082.0,59081.0,0.565425]
[1724993761760,0.18926966,59082.0,59081.0,0.565425]
[1724993764262,0.18926966,59082.0,59081.0,0.445425]
[1724993764568,0.18926966,59082.0,59081.0,0.565425]
[1724993766253,0.18826966,59082.0,59081.0,0.565425]
[1724993766660,0.18464963,59085.0,59083.0,0.084622]
[1724993767467,0.06569958,59086.0,59084.0,0.084621]
[1724993767966,0.19002369,59085.0,59084.0,0.084621]
[1724993768364,0.19102369,59085.0,59084.0,0.084621]
[1724993769361,0.19202369,59085.0,59084.0,0.084621]
[1724993770255,0.19202369,59085.0,59084.0,0.204621]
[1724993770455,0.19202369,59085.0,59084.0,0.712381]
[1724993771457,0.19202369,59085.0,59084.0,1.312381]
[1724993771660,0.002,59085.0,59084.0,1.312381]
[1724993772761,0.001,59085.0,59084.0,1.312381]
[1724993772961,0.002,59085.0,59084.0,1.312381]
[1724993777966,0.002,59085.0,59084.0,0.712381]
[1724993785271,0.002,59085.0,59084.0,0.204621]
[1724993785567,0.002,59085.0,59084.0,0.712381]
[1724993789365,0.002,59085.0,59084.0,0.592381]
[1724993789564,0.002,59085.0,59084.0,0.712381]
[1724993790573,0.001,59085.0,59084.0,0.722381]
[1724993791268,0.001,59085.0,59084.0,0.214621]
[1724993791667,0.00025395,59088.0,59087.0,0.084616]
[1724993791874,0.00025395,59088.0,59087.0,0.565416]
[1724993792175,0.1818402,59088.0,59087.0,0.565416]
[1724993792969,0.1818402,59088.0,59087.0,0.567416]
[1724993793769,0.1818402,59088.0,59087.0,0.569416]
[1724993794377,0.1818402,59088.0,59087.0,0.58452157]
[1724993795077,0.1818402,59088.0,59087.0,0.58552157]
[1724993795472,0.1818402,59088.0,59087.0,0.58252157]
[1724993795775,0.1818402,59088.0,59087.0,0.58452157]
[1724993795983,0.1818402,59088.0,59087.0,0.58252157]
[1724993796772,0.1818402,59088.0,59087.0,0.58052157]
[1724993797172,0.1818402,59088.0,59087.0,0.58152157]
[1724993798474,0.1828402,59088.0,59087.0,0.58152157]
[1724993799178,0.1828402,59088.0,59087.0,0.58052157]
[1724993801778,0.1818402,59088.0,59087.0,0.58052157]
[1724993801974,0.1818402,59088.0,59087.0,0.58152157]
[1724993802177,0.1828402,59088.0,59087.0,0.58152157]
[1724993802772,0.1838402,59088.0,59087.0,0.58052157]
[1724993805575,0.1838402,59088.0,59087.0,0.37590557]
[1724993805876,0.3884552,59088.0,59087.0,0.37590557]
[1724993807476,0.8115602,59088.0,59080.0,0.0039]
[1724993807784,0.12,59082.0,59077.0,0.3300921]
[1724993808088,0.22849223,59081.0,59077.0,0.3261921]
[1724993808276,0.22849223,59081.0,59079.0,0.12]
[1724993808889,0.22849223,59081.0,59080.0,0.004]
[1724993809275,0.22849223,59081.0,59079.0,0.12]
[1724993809473,0.22849223,59081.0,59080.0,0.004]
[1724993811287,0.22849223,59081.0,59080.0,0.008]
[1724993815675,0.31311723,59081.0,59080.0,0.008]
[1724993816582,0.0752972,59081.0,59080.0,0.008]
[1724993816783,0.25405067,59081.0,59080.0,0.008]
[1724993819784,0.29915067,59081.0,59080.0,0.008]
[1724993820789,0.29915067,59081.0,59080.0,0.3688]
[1724993826093,0.25405067,59081.0,59080.0,0.3688]
[1724993826886,0.25405067,59081.0,59080.0,0.008]
[1724993827186,0.25405067,59081.0,59080.0,0.3688]